bitfinex-derivatives/quotes_BTCF0:USTF0_20250527
["timestamp","ask_amount","ask_price","bid_price","bid_amount"]
[1748332909362,1.3622309,109780.0,109770.0,0.05945319]
[1748332909859,1.3622309,109780.0,109770.0,0.24160569]
[1748332910063,1.23392046,109780.0,109770.0,0.24160569]
[1748332910247,1.3622309,109780.0,109770.0,0.24160569]
[1748332910561,1.3622309,109780.0,109770.0,0.05945319]
[1748332911555,1.3622309,109780.0,109770.0,0.24160579]
[1748332912061,1.3622309,109780.0,109770.0,0.05945319]
[1748332912864,1.3622309,109780.0,109770.0,0.24160579]
[1748332913064,1.3622309,109780.0,109770.0,0.05945319]
[1748332913562,1.3622309,109780.0,109770.0,0.24160569]
[1748332913862,0.9522309,109780.0,109770.0,0.40559111]
[1748332914061,1.3622309,109780.0,109770.0,0.40559111]
[1748332914471,1.3622309,109780.0,109770.0,0.22343861]
[1748332914961,1.3622309,109780.0,109770.0,0.40559111]
[1748332915159,1.3622309,109780.0,109770.0,0.22343861]
[1748332915360,1.3622309,109780.0,109770.0,0.05945319]
[1748332915561,1.23392046,109780.0,109770.0,0.05945319]
[1748332915866,1.3622309,109780.0,109770.0,0.05945319]
[1748332916265,0.32524046,109780.0,109770.0,0.05945319]
[1748332916562,0.14310456,109780.0,109770.0,0.40559096]
[1748332916961,0.271415,109780.0,109770.0,0.40559096]
[1748332917156,0.32524036,109780.0,109770.0,0.40559096]
[1748332917370,0.4535508,109780.0,109770.0,0.40559096]
[1748332917967,0.4535508,109780.0,109770.0,0.24160559]
[1748332918461,0.14310456,109780.0,109770.0,0.24160559]
[1748332918856,0.4535509,109780.0,109770.0,0.24160559]
[1748332919565,0.45794272,109780.0,109770.0,0.24160559]
[1748332919769,0.32963228,109780.0,109770.0,0.40558954]
[1748332919971,0.45794272,109780.0,109770.0,0.40558954]
[1748332920470,0.4535509,109780.0,109770.0,0.40558954]
[1748332920673,0.14310456,109780.0,109770.0,0.40558954]
[1748332920858,0.66466456,109780.0,109770.0,0.76638954]
[1748332921171,0.55310456,109780.0,109770.0,0.76638954]
[1748332923570,0.73524046,109780.0,109770.0,0.58423714]
[1748332923771,0.73524046,109780.0,109770.0,0.76638964]
[1748332923973,0.55310456,109780.0,109770.0,0.76638964]
[1748332924172,0.863551,109780.0,109770.0,0.76638964]
[1748332924367,0.681415,109780.0,109770.0,0.46555046]
[1748332924671,0.681415,109780.0,109770.0,0.30156651]
[1748332925767,0.8635509,109780.0,109770.0,0.30156651]
[1748332926080,0.55310456,109780.0,109770.0,0.30156651]
[1748332926278,0.681415,109780.0,109770.0,0.30156651]
[1748332926576,0.8635509,109780.0,109770.0,0.30156651]
[1748332927374,0.8635509,109780.0,109770.0,0.11941401]
[1748332927870,0.8635509,109780.0,109770.0,0.24160569]
[1748332928074,0.8635509,109780.0,109770.0,0.05945319]
[1748332928577,0.14310456,109780.0,109770.0,0.60240559]
[1748332928874,0.32524036,109780.0,109770.0,0.60240559]
[1748332929075,0.14310456,109780.0,109770.0,0.40558806]
[1748332929269,0.73524036,109780.0,109770.0,0.22343566]
[1748332929471,0.8635508,109780.0,109770.0,0.40558806]
[1748332930282,0.55322456,109780.0,109770.0,0.83138806]
[1748332931174,0.14322456,109780.0,109770.0,0.83138806]
[1748332931367,0.14322456,109780.0,109770.0,0.89134888]
[1748332931778,0.14749638,109780.0,109770.0,0.89134888]
[1748332931971,0.11571638,109780.0,109770.0,0.89134888]
[1748332932174,0.11559638,109780.0,109770.0,0.89134888]
[1748332932372,0.08399638,109780.0,109770.0,0.89134888]
[1748332932678,0.07960456,109780.0,109770.0,0.89134888]
[1748332933076,0.11282456,109780.0,109770.0,0.89134888]
[1748332933867,0.11721638,109780.0,109770.0,0.89134888]
[1748332934678,0.52721638,109780.0,109770.0,0.89134888]
[1748332934978,0.52282456,109780.0,109770.0,0.89134888]
[1748332935577,0.52278456,109780.0,109770.0,0.72736641]
[1748332935775,0.11282456,109780.0,109770.0,0.72736641]
[1748332935977,1.1940308,109780.0,109770.0,0.28339146]
[1748332936377,1.1940308,109780.0,109770.0,0.37153937]
[1748332936581,1.06572036,109780.0,109770.0,0.37153937]
[1748332936770,1.1940308,109780.0,109770.0,0.37153937]
[1748332936975,1.06572036,109780.0,109770.0,0.37153937]
[1748332937275,0.16970525,109780.0,109770.0,0.55369177]
[1748332937679,0.57966525,109780.0,109770.0,0.61939177]
[1748332937879,0.57966525,109780.0,109770.0,0.62378359]
[1748332938079,0.52278456,109780.0,109770.0,0.62378359]
[1748332938278,0.52266456,109780.0,109770.0,0.62378359]
[1748332938679,0.52278456,109780.0,109770.0,0.62378359]
[1748332938888,0.52278456,109780.0,109770.0,0.61939177]
[1748332939086,0.52278456,109780.0,109770.0,0.83095968]
[1748332939274,0.70492036,109780.0,109770.0,0.64880728]
[1748332939586,0.70492036,109780.0,109770.0,0.22230728]
[1748332940088,0.70931218,109780.0,109770.0,0.22230728]
[1748332940283,0.83762262,109780.0,109770.0,0.22230728]
[1748332940483,0.83762262,109780.0,109770.0,0.40445968]
[1748332940781,0.83762262,109780.0,109770.0,0.22230728]
[1748332940975,0.70492036,109780.0,109770.0,0.40445968]
[1748332941176,0.8332308,109780.0,109770.0,0.40445968]
[1748332941685,0.8332308,109780.0,109770.0,0.46487555]
[1748332941876,0.8332308,109780.0,109770.0,0.28272315]
[1748332942478,0.8332308,109780.0,109770.0,0.1187457]
[1748332943684,0.8332308,109780.0,109770.0,0.10939196]
[1748332944477,0.8332308,109780.0,109770.0,0.273375]
[1748332944676,1.1940308,109780.0,109770.0,0.273375]
[1748332946084,1.1940308,109780.0,109770.0,0.10939196]
[1748332946283,0.7840708,109780.0,109770.0,0.10939196]
[1748332946483,1.82475149,109780.0,109770.0,0.10939196]
[1748332946788,1.82475149,109780.0,109770.0,0.21265548]
[1748332946975,0.71264105,109780.0,109770.0,0.21265548]
[1748332947391,0.84095149,109780.0,109770.0,0.21265548]
[1748332947986,0.85461149,109780.0,109770.0,0.21265548]
[1748332948391,0.7977308,109780.0,109770.0,0.21265548]
[1748332948882,0.66942036,109780.0,109770.0,0.21265548]
[1748332949078,0.7977308,109780.0,109770.0,0.37664377]
[1748332949692,1.8169708,109780.0,109770.0,0.37664377]
[1748332950189,1.8169708,109780.0,109770.0,0.27338025]
[1748332950581,1.87385149,109780.0,109770.0,0.27338025]
[1748332950784,1.87385149,109780.0,109770.0,0.10939196]
[1748332951896,1.8169708,109780.0,109770.0,0.10939196]
[1748332952101,1.8169708,109780.0,109770.0,0.11378378]
[1748332953192,1.8169708,109780.0,109770.0,0.10939196]
[1748332955496,1.8169708,109780.0,109770.0,0.21264753]
[1748332956595,1.68866036,109780.0,109770.0,0.21264753]
[1748332956797,1.8169708,109780.0,109770.0,0.21264753]
[1748332957092,1.68866036,109780.0,109770.0,0.21264753]
[1748332957294,1.8169708,109780.0,109770.0,0.21264753]
[1748332959290,0.77550105,109780.0,109770.0,0.21264753]
[1748332959495,0.90381149,109780.0,109770.0,0.37663183]
[1748332959798,1.26461149,109780.0,109770.0,0.40863183]
[1748332959991,1.26461149,109780.0,109770.0,0.37663183]
[1748332960185,0.85461149,109780.0,109770.0,0.37663183]
[1748332960390,1.89393149,109780.0,109770.0,0.37663183]
[1748332960589,1.8370508,109780.0,109770.0,0.37663183]
[1748332961094,1.8370508,109780.0,109770.0,0.21264753]
[1748332963491,1.89393149,109780.0,109770.0,0.21264753]
[1748332964883,0.85461149,109780.0,109770.0,0.21264753]
[1748332965087,1.89393149,109780.0,109770.0,0.21264753]
[1748332965492,1.89393149,109780.0,109770.0,0.37663856]
[1748332965688,0.72630105,109780.0,109770.0,0.37663856]
[1748332966000,1.26461149,109780.0,109770.0,0.37663856]
[1748332966501,1.13630105,109780.0,109770.0,0.37663856]
[1748332966689,1.26461149,109780.0,109770.0,0.38704831]
[1748332967184,1.13630105,109780.0,109770.0,0.22305728]
[1748332967390,1.26461149,109780.0,109770.0,0.22305728]
[1748332967599,1.13630105,109780.0,109770.0,0.22305728]
[1748332967792,1.26461149,109780.0,109770.0,0.25485728]
[1748332968893,1.13630105,109780.0,109770.0,0.25485728]
[1748332969095,1.26449149,109780.0,109770.0,0.25485728]
[1748332969287,1.13618105,109780.0,109770.0,0.25485728]
[1748332969491,1.26449149,109780.0,109770.0,0.25485728]
[1748332969692,1.79362105,109780.0,109770.0,0.25485728]
[1748332970003,1.92193149,109780.0,109770.0,0.25485728]
[1748332970305,1.79362105,109780.0,109770.0,0.25485728]
[1748332970487,1.92193149,109780.0,109770.0,0.25485728]
[1748332971204,1.92197149,109780.0,109770.0,0.20379515]
[1748332971700,1.13618105,109780.0,109770.0,0.20379515]
[1748332971893,1.26449149,109780.0,109770.0,0.26629515]
[1748332973907,0.85449149,109780.0,109770.0,0.26629515]
[1748332974106,1.13618105,109780.0,109770.0,0.26629515]
[1748332974305,0.49369149,109780.0,109770.0,0.26629515]
[1748332974500,0.90369149,109780.0,109770.0,0.26629515]
[1748332974699,1.26449149,109780.0,109770.0,0.26629515]
[1748332975406,1.13618105,109780.0,109770.0,0.26629515]
[1748332975612,0.36538105,109780.0,109770.0,0.26629515]
[1748332975908,0.77538105,109780.0,109770.0,0.26629515]
[1748332976108,1.13618105,109780.0,109770.0,0.26629515]
[1748332976306,0.90369149,109780.0,109770.0,0.26629515]
[1748332976606,1.13618105,109780.0,109770.0,0.26629515]
[1748332976899,1.26461149,109780.0,109770.0,0.26629515]
[1748332977105,1.07942036,109780.0,109770.0,0.26629515]
[1748332977303,0.71862036,109780.0,109770.0,0.26629515]
[1748332977493,0.8469308,109780.0,109770.0,0.26629515]
[1748332978407,0.71862036,109780.0,109770.0,0.26629515]
[1748332978613,0.72301218,109780.0,109770.0,0.26629515]
[1748332978907,0.85132262,109780.0,109770.0,0.26629515]
[1748332979210,0.72301218,109780.0,109770.0,0.26629515]
[1748332979408,0.85132262,109780.0,109770.0,0.26629515]
[1748332979709,0.71862036,109780.0,109770.0,0.26629515]
[1748332980100,0.8469308,109780.0,109770.0,0.26629515]
[1748332980600,0.72301218,109780.0,109770.0,0.26629515]
[1748332980801,0.85132262,109780.0,109770.0,0.26629515]
[1748332981808,0.8469308,109780.0,109770.0,0.26629515]
[1748332981993,0.71862036,109780.0,109770.0,0.26629515]
[1748332982190,0.83408722,109780.0,109770.0,0.43027658]
[1748332982595,1.49152722,109780.0,109770.0,0.43027658]
[1748332982810,1.37606036,109780.0,109770.0,0.43027658]
[1748332983001,0.30862036,109780.0,109770.0,0.43027658]
[1748332983207,0.83408722,109780.0,109770.0,0.43027658]
[1748332984009,0.83408722,109780.0,109770.0,0.26629515]
[1748332984408,0.27552046,109780.0,109770.0,0.80924765]
[1748332984613,0.27552046,109780.0,109770.0,1.08869077]
[1748332984800,0.39086732,109780.0,109770.0,1.09308259]
[1748332985108,0.39098732,109780.0,109770.0,1.02870848]
[1748332985303,0.27552046,109780.0,109770.0,1.02870848]
[1748332985501,0.39098732,109780.0,109770.0,1.02870848]
[1748332985712,0.39098732,109780.0,109770.0,1.02431666]
[1748332986712,0.27991228,109780.0,109770.0,1.02431666]
[1748332987202,0.39537914,109780.0,109770.0,1.02431666]
[1748332987401,0.75617914,109780.0,109770.0,0.41886416]
[1748332987604,0.67081228,109780.0,109770.0,0.41886416]
[1748332987802,0.42547914,109780.0,109770.0,0.45166416]
[1748332988199,0.71997228,109780.0,109770.0,0.45166416]
[1748332988406,0.67896772,109780.0,109770.0,0.45166416]
[1748332988606,0.79443458,109780.0,109770.0,0.45166416]
[1748332988805,0.79443458,109780.0,109770.0,0.3557262]
[1748332989104,0.67896772,109780.0,109770.0,0.24206088]
[1748332989411,0.79443458,109780.0,109770.0,0.24206088]
[1748332990004,0.67896772,109780.0,109770.0,0.24206088]
[1748332990203,0.67896772,109780.0,109770.0,0.07808462]
[1748332990822,0.26900772,109780.0,109770.0,0.35608447]
[1748332991010,0.23890772,109780.0,109770.0,0.84516693]
[1748332991314,0.27962687,109780.0,109770.0,0.71688447]
[1748332991512,0.27974687,109780.0,109770.0,0.71688447]
[1748332991699,0.24714687,109780.0,109770.0,0.71688447]
[1748332991904,0.06061915,109780.0,109770.0,0.54068103]
[1748332992109,0.01978,109780.0,109770.0,0.66896349]
[1748332992306,0.14428013,109800.0,109790.0,0.1821191]
[1748332992615,0.35948263,109800.0,109790.0,0.5429191]
[1748332992800,0.35948263,109800.0,109790.0,0.70688749]
[1748332993005,0.17750013,109800.0,109790.0,0.70688749]
[1748332993206,0.34340245,109800.0,109790.0,0.70688749]
[1748332993712,0.34352245,109800.0,109790.0,0.73264424]
[1748332994015,0.37592245,109800.0,109790.0,0.73264424]
[1748332994202,0.33512333,109800.0,109790.0,0.55052514]
[1748332994619,0.33512333,109800.0,109790.0,0.18972514]
[1748332994809,0.36912333,109800.0,109790.0,0.18972514]
[1748332995001,0.36912333,109800.0,109790.0,0.23232514]
[1748332995205,0.36912333,109800.0,109790.0,0.19536839]
[1748332995407,0.49740579,109800.0,109790.0,0.16396839]
[1748332995615,0.73192333,109800.0,109790.0,0.16396839]
[1748332996115,0.1821191,109790.0,109780.0,0.69003887]
[1748332996318,0.2446191,109790.0,109780.0,0.69003887]
[1748332997513,0.2456191,109790.0,109780.0,0.69003887]
[1748332997716,0.2456191,109790.0,109780.0,0.85400726]
[1748332998112,0.2466191,109790.0,109780.0,0.90333606]
[1748332998315,0.0645,109790.0,109780.0,1.03161852]
[1748332998820,0.10524557,109790.0,109780.0,1.03161852]
[1748332999011,0.10536557,109790.0,109780.0,1.03161852]
[1748332999212,0.10536557,109790.0,109780.0,0.86765013]
[1748332999407,0.10536557,109790.0,109780.0,0.73936767]
[1748333000010,0.10975739,109790.0,109780.0,0.73936767]
[1748333000318,0.29187649,109790.0,109780.0,0.69003887]
[1748333001011,0.2467391,109790.0,109780.0,0.69003887]
[1748333002024,0.25113092,109790.0,109780.0,0.69003887]
[1748333002216,0.03771182,109790.0,109780.0,0.81832133]
[1748333002425,0.21983092,109790.0,109780.0,0.90940933]
[1748333002920,0.21983092,109790.0,109780.0,1.31932933]
[1748333003824,0.21983092,109790.0,109780.0,1.48329772]
[1748333004024,0.2154391,109790.0,109780.0,1.48329772]
[1748333005014,0.2154391,109790.0,109780.0,1.53262652]
[1748333005317,0.2154391,109790.0,109780.0,1.40434406]
[1748333005509,0.2154391,109790.0,109780.0,1.53262652]
[1748333005717,0.2154391,109790.0,109780.0,1.44153852]
[1748333006020,0.2477391,109790.0,109780.0,1.44153852]
[1748333006521,0.1842391,109790.0,109780.0,1.78262652]
[1748333006821,0.2151191,109790.0,109780.0,1.78262652]
[1748333007022,0.2152391,109790.0,109780.0,1.65434406]
[1748333007218,0.2152391,109790.0,109780.0,1.78262652]
[1748333007413,0.1842391,109790.0,109780.0,1.78262652]
[1748333007806,0.2151191,109790.0,109780.0,1.78262652]
[1748333008010,0.2152391,109790.0,109780.0,1.84095485]
[1748333008215,0.00212,109790.0,109780.0,1.46267239]
[1748333008413,0.00212,109790.0,109780.0,1.59095485]
[1748333008612,0.00212,109790.0,109780.0,1.84095485]
[1748333008808,0.002,109790.0,109780.0,1.71267239]
[1748333009016,0.03312,109790.0,109780.0,1.71267239]
[1748333009220,0.033,109790.0,109780.0,1.59095485]
[1748333009415,0.03312,109790.0,109780.0,1.82637665]
[1748333009616,0.2152391,109790.0,109780.0,1.95465911]
[1748333010018,0.2142391,109790.0,109780.0,1.95465911]
[1748333010618,0.03212,109790.0,109780.0,1.95465911]
[1748333010924,0.2132391,109790.0,109780.0,1.95465911]
[1748333011315,0.21763092,109790.0,109780.0,1.95465911]
[1748333011523,0.21763092,109790.0,109780.0,1.82637665]
[1748333011715,0.21763092,109790.0,109780.0,1.59095485]
[1748333012119,0.21763092,109790.0,109780.0,1.05275239]
[1748333012423,0.21763092,109790.0,109780.0,0.29829909]
[1748333012621,0.24943092,109790.0,109780.0,0.84123479]
[1748333013728,0.24943092,109790.0,109780.0,0.8160645]
[1748333014118,0.61023092,109790.0,109780.0,0.4552645]
[1748333014324,0.24943092,109790.0,109780.0,0.39693617]
[1748333014623,0.24943092,109790.0,109780.0,0.75773617]
[1748333014823,0.24943092,109790.0,109780.0,0.59376778]
[1748333015027,0.24943092,109790.0,109780.0,0.75771543]
[1748333015218,0.24943092,109790.0,109780.0,0.57557973]
[1748333015526,0.24943092,109790.0,109780.0,0.39691543]
[1748333016029,0.24943092,109790.0,109780.0,0.21477973]
[1748333016225,0.24943092,109790.0,109780.0,0.39691543]
[1748333016728,0.24943092,109790.0,109780.0,0.23296778]
[1748333017824,1.02011092,109790.0,109780.0,0.05083208]
[1748333018022,1.14839338,109790.0,109780.0,0.05083208]
[1748333018229,1.14839338,109790.0,109770.0,0.12806785]
[1748333018230,0.1821357,109780.0,109770.0,0.12806785]
[1748333018532,0.1821523,109770.0,109760.0,0.00136671]
[1748333018715,0.9528323,109770.0,109760.0,0.00136671]
[1748333018914,0.1821689,109760.0,109750.0,0.013159]
[1748333019121,1.37161136,109760.0,109750.0,0.013159]
[1748333019428,1.71272336,109760.0,109750.0,0.013159]
[1748333019615,1.01236336,109760.0,109750.0,0.013159]
[1748333019817,0.1821855,109750.0,109740.0,0.00013688]
[1748333020018,0.5429855,109750.0,109740.0,0.00013688]
[1748333020429,0.5442555,109750.0,109740.0,0.00013688]
[1748333021220,0.5933755,109750.0,109740.0,0.54313898]
[1748333021525,0.5933755,109750.0,109740.0,0.18233898]
[1748333021723,0.6869755,109750.0,109740.0,0.00013688]
[1748333022033,1.0477755,109750.0,109740.0,0.00013688]
[1748333025029,1.17605796,109750.0,109740.0,0.00013688]
[1748333025624,1.7483755,109750.0,109740.0,0.00013688]
[1748333025819,1.78898805,109750.0,109740.0,0.00013688]
[1748333026229,0.22406815,109750.0,109740.0,0.54313908]
[1748333026426,0.04188255,109750.0,109740.0,0.73472154]
[1748333026618,0.04188255,109750.0,109740.0,0.76712154]
[1748333026823,0.04200255,109750.0,109740.0,0.76712154]
[1748333027132,0.04200255,109750.0,109740.0,1.34075908]
[1748333027341,0.00127,109750.0,109740.0,1.46904154]
[1748333027631,0.00127,109750.0,109740.0,1.63307384]
[1748333027832,0.03183688,109770.0,109760.0,0.182169]
[1748333028020,0.03183688,109770.0,109760.0,0.67125146]
[1748333028226,0.21398928,109770.0,109760.0,0.640569]
[1748333028430,0.24460928,109770.0,109760.0,0.640569]
[1748333028738,0.24448928,109770.0,109760.0,0.640569]
[1748333028919,0.24460928,109770.0,109760.0,0.640569]
[1748333029324,0.24560928,109770.0,109760.0,0.4584]
[1748333029536,0.24560928,109770.0,109760.0,0.640569]
[1748333030238,0.24560928,109770.0,109760.0,0.4584]
[1748333030438,0.24560928,109770.0,109740.0,0.36193688]
[1748333030439,0.59808004,109770.0,109740.0,0.36193688]
[1748333030737,0.7469738,109760.0,109750.0,0.1821857]
[1748333031034,0.2914281,109760.0,109750.0,0.1821857]
[1748333031228,0.2914281,109760.0,109750.0,0.6046857]
[1748333032333,0.2914281,109760.0,109750.0,0.4225]
[1748333032735,0.2914281,109760.0,109750.0,0.6046857]
[1748333034333,0.2914281,109760.0,109750.0,0.4225]
[1748333034536,0.1821858,109750.0,109740.0,0.76250834]
[1748333034740,0.2469858,109750.0,109740.0,0.60542628]
[1748333035428,0.6569858,109750.0,109740.0,0.42323688]
[1748333035728,0.6569858,109750.0,109740.0,0.60543918]
[1748333036135,0.6569858,109750.0,109740.0,0.60643918]
[1748333036337,0.6569858,109750.0,109740.0,0.42423688]
[1748333036528,0.6569858,109750.0,109740.0,0.42623688]
[1748333037038,0.6569858,109750.0,109740.0,0.60843918]
[1748333037231,0.6569858,109750.0,109740.0,0.42623688]
[1748333037839,0.6569858,109750.0,109740.0,0.60843918]
[1748333040931,0.2469858,109750.0,109740.0,0.73672164]
[1748333041135,0.2277166,109760.0,109750.0,0.1821856]
[1748333041326,0.2277166,109760.0,109750.0,0.76826806]
[1748333041327,0.2610166,109760.0,109750.0,0.76826806]
[1748333041943,0.2611366,109760.0,109750.0,0.6399856]
[1748333043632,0.2611366,109760.0,109750.0,0.76826806]
[1748333043832,0.2610166,109760.0,109750.0,0.68726808]
[1748333044039,0.2611366,109760.0,109750.0,0.68726808]
[1748333044242,0.2922366,109760.0,109750.0,0.68726808]
[1748333045037,0.78131906,109760.0,109750.0,0.04728248]
[1748333045239,1.22291906,109760.0,109750.0,0.04728248]
[1748333045744,1.0946366,109760.0,109750.0,0.04728248]
[1748333047238,1.13540933,109760.0,109750.0,0.04728248]
[1748333049847,1.26369179,109760.0,109750.0,0.04728248]
[1748333051342,0.72540933,109760.0,109750.0,0.04728248]
[1748333051744,1.40124933,109760.0,109750.0,0.04728248]
[1748333052338,1.40112933,109760.0,109750.0,0.04728248]
[1748333052537,1.52953179,109760.0,109750.0,0.04728248]
[1748333053248,1.40124933,109760.0,109750.0,0.04728248]
[1748333053848,1.93957179,109760.0,109750.0,0.04728248]
[1748333054749,1.99645109,109760.0,109750.0,0.04728248]
[1748333055746,0.91057109,109760.0,109750.0,0.04728248]
[1748333055939,1.99649109,109760.0,109750.0,0.04728248]
[1748333057046,0.1821856,109750.0,109740.0,0.00013688]
[1748333057350,0.6056856,109750.0,109740.0,0.00013688]
[1748333057551,0.64645833,109750.0,109740.0,0.00013688]
[1748333058049,0.77474079,109750.0,109740.0,0.00013688]
[1748333058245,0.77474079,109750.0,109740.0,0.00113688]
[1748333058648,0.77474079,109750.0,109740.0,0.00313688]
[1748333059242,0.77474079,109750.0,109740.0,0.03383688]
[1748333059444,0.77474079,109750.0,109740.0,0.03183688]
[1748333060347,0.77474079,109750.0,109740.0,0.03083688]
[1748333061948,0.77474079,109750.0,109740.0,0.00013688]
[1748333062547,0.77474079,109750.0,109740.0,0.03303688]
[1748333063352,0.77474079,109750.0,109740.0,0.06473688]
[1748333063854,0.77474079,109750.0,109740.0,0.00013688]
[1748333064342,0.83162009,109750.0,109740.0,0.00013688]
[1748333065253,0.83601191,109750.0,109740.0,0.00013688]
[1748333065760,0.70772945,109750.0,109740.0,0.00013688]
[1748333065950,0.83601191,109750.0,109740.0,0.00013688]
[1748333066146,0.70772945,109750.0,109740.0,0.03143688]
[1748333066345,0.70772945,109750.0,109740.0,0.06163688]
[1748333067156,1.11780945,109750.0,109740.0,0.06163688]
[1748333067350,1.24182009,109750.0,109740.0,0.00013688]
[1748333067550,1.18494079,109750.0,109740.0,0.00013688]
[1748333068047,0.64657833,109750.0,109740.0,0.00013688]
[1748333068249,1.18494079,109750.0,109740.0,0.00013688]
[1748333068455,1.18494079,109750.0,109740.0,0.03263688]
[1748333068749,1.18494079,109750.0,109740.0,0.09643688]
[1748333068952,1.05665833,109750.0,109740.0,0.11067642]
[1748333069152,1.0418492,109750.0,109740.0,0.11067642]
[1748333069951,1.17013166,109750.0,109740.0,0.11067642]
[1748333072660,1.17013166,109750.0,109740.0,0.04687642]
[1748333073050,1.17013166,109750.0,109740.0,0.01437642]
[1748333073658,1.22701096,109750.0,109740.0,0.01437642]
[1748333073860,1.22701096,109750.0,109740.0,0.07737642]
[1748333074160,1.077529,109750.0,109740.0,0.01437642]
[1748333074463,1.21020328,109750.0,109740.0,0.01437642]
[1748333074648,1.08192082,109750.0,109740.0,0.06202822]
[1748333074955,1.08192082,109750.0,109740.0,0.09222822]
[1748333075162,1.21020328,109750.0,109740.0,0.09222822]
[1748333075457,1.20581146,109750.0,109740.0,0.09222822]
[1748333075657,1.077529,109750.0,109740.0,0.09222822]
[1748333075855,1.077529,109750.0,109740.0,0.12502822]
[1748333076045,1.20581146,109750.0,109740.0,0.12502822]
[1748333076449,0.79573146,109750.0,109740.0,0.12502822]
[1748333076649,1.20581146,109750.0,109740.0,0.12502822]
[1748333078558,1.20581146,109750.0,109740.0,0.07737642]
[1748333079249,0.667449,109750.0,109740.0,0.01437642]
[1748333079753,0.667449,109750.0,109740.0,0.07807642]
[1748333079958,0.79573146,109750.0,109740.0,0.07807642]
[1748333083566,0.88105041,109750.0,109740.0,0.12578556]
[1748333084161,0.87512655,109750.0,109740.0,0.12578556]
[1748333084966,0.74684409,109750.0,109740.0,0.12578556]
[1748333085360,0.87512655,109750.0,109740.0,0.12578556]
[1748333085966,1.28524655,109750.0,109740.0,0.12578556]
[1748333086367,1.15696409,109750.0,109740.0,0.12578556]
[1748333086665,1.28524655,109750.0,109740.0,0.28983114]
[1748333087161,1.15696409,109750.0,109740.0,0.28983114]
[1748333087566,1.28524655,109750.0,109740.0,0.29422296]
[1748333088970,0.74684409,109750.0,109740.0,0.29422296]
[1748333089169,1.28524655,109750.0,109740.0,0.29422296]
[1748333089771,1.28524655,109750.0,109740.0,0.13017738]
[1748333090065,1.15696409,109750.0,109740.0,0.13017738]
[1748333090259,0.87512655,109750.0,109740.0,0.13017738]
[1748333090459,1.94468655,109750.0,109740.0,0.13017738]
[1748333090969,1.94468655,109750.0,109740.0,0.08246824]
[1748333091368,1.81640409,109750.0,109740.0,0.08246824]
[1748333091568,0.87512655,109750.0,109740.0,0.08246824]
[1748333091773,1.94468655,109750.0,109740.0,0.08246824]
[1748333092460,1.94468655,109750.0,109740.0,0.05056824]
[1748333092864,0.74684409,109750.0,109740.0,0.05056824]
[1748333093169,1.94468655,109750.0,109740.0,0.05056824]
[1748333093369,1.94468655,109750.0,109740.0,0.08216824]
[1748333094066,1.94468655,109750.0,109720.0,0.20265951]
[1748333094266,0.2733344,109730.0,109720.0,0.01324403]
[1748333094466,0.6834544,109730.0,109720.0,0.01324403]
[1748333094766,0.7162544,109730.0,109720.0,0.01324403]
[1748333094967,1.20533686,109730.0,109720.0,0.01324403]
[1748333095164,1.23563686,109730.0,109720.0,0.01324403]
[1748333095670,1.27640959,109730.0,109720.0,0.01324403]
[1748333095870,1.14812713,109730.0,109720.0,0.01924403]
[1748333097273,1.14812713,109730.0,109720.0,0.11454403]
[1748333097473,1.14812713,109730.0,109720.0,0.27859112]
[1748333098269,1.14812713,109730.0,109720.0,0.21549112]
[1748333098471,1.27640959,109730.0,109720.0,0.18329112]
[1748333098771,1.27640959,109730.0,109720.0,0.21409112]
[1748333098972,1.27640959,109730.0,109720.0,0.18329112]
[1748333099275,1.33328889,109730.0,109720.0,0.01924403]
[1748333100669,1.20500643,109730.0,109720.0,0.01924403]
[1748333100874,1.33328889,109730.0,109720.0,0.01924403]
[1748333101373,1.33328889,109730.0,109720.0,0.01624403]
[1748333101667,0.1822354,109720.0,109710.0,0.0137662]
[1748333101867,0.76261786,109720.0,109710.0,0.0137662]
[1748333102074,0.76261786,109720.0,109710.0,0.00013688]
[1748333102574,0.86026989,109720.0,109710.0,0.00013688]
[1748333102768,0.73198743,109720.0,109710.0,0.00013688]
[1748333102968,0.86026989,109720.0,109710.0,0.00013688]
[1748333103675,1.90550989,109720.0,109710.0,0.03253688]
[1748333104171,1.90550989,109720.0,109710.0,0.03453688]
[1748333104667,1.84863059,109720.0,109710.0,0.00313688]
[1748333105275,1.72034813,109720.0,109710.0,0.00313688]
[1748333105470,1.84863059,109720.0,109710.0,0.00313688]
[1748333106261,1.77722743,109720.0,109710.0,0.00313688]
[1748333106462,1.90550989,109720.0,109710.0,0.00313688]
[1748333106661,0.73198743,109720.0,109710.0,0.00313688]
[1748333106867,1.77730743,109720.0,109710.0,0.00313688]
[1748333107377,1.77730743,109720.0,109710.0,0.03573688]
[1748333107579,1.72042813,109720.0,109710.0,0.06703688]
[1748333107780,1.72042813,109720.0,109710.0,0.09963688]
[1748333109779,0.67510813,109720.0,109710.0,0.09963688]
[1748333109976,1.72042813,109720.0,109710.0,0.1040287]
[1748333112978,0.67510813,109720.0,109710.0,0.1040287]
[1748333113183,1.25674813,109720.0,109710.0,0.2862807]
[1748333113391,0.04089273,109720.0,109710.0,0.6470806]
[1748333113577,0.22312803,109720.0,109710.0,0.6470806]
[1748333113885,0.1822353,109720.0,109710.0,0.77536306]
[1748333114079,0.2149553,109720.0,109710.0,0.8111692]
[1748333114979,0.1823553,109720.0,109710.0,0.8111692]
[1748333115188,1.1225045,109730.0,109720.0,0.1822353]
[1748333115487,1.1225045,109730.0,109720.0,0.2461353]
[1748333115673,0.7617045,109730.0,109720.0,0.4102239]
[1748333117173,0.7617045,109730.0,109720.0,0.2461353]
[1748333117377,0.80140682,109730.0,109720.0,0.2461353]
[1748333117582,0.80140682,109730.0,109720.0,0.0639]
[1748333117989,0.80140682,109730.0,109720.0,0.2461353]
[1748333118679,0.39120682,109730.0,109720.0,0.2461353]
[1748333119478,0.39120682,109730.0,109720.0,0.0639]
[1748333120283,0.42200682,109730.0,109720.0,0.0639]
[1748333120787,0.94108928,109730.0,109720.0,0.0307]
[1748333120980,0.1822353,109720.0,109710.0,0.06273688]
[1748333121185,1.0148953,109720.0,109710.0,0.03113688]
[1748333121387,1.0148953,109720.0,109710.0,0.09293688]
[1748333121589,1.0148953,109720.0,109710.0,0.00013688]
[1748333122185,1.14317776,109720.0,109710.0,0.00013688]
[1748333122378,1.14317776,109720.0,109710.0,0.01481217]
[1748333122580,1.18288008,109720.0,109710.0,0.01581217]
[1748333123389,1.18288008,109720.0,109710.0,0.06323397]
[1748333125278,1.18288008,109720.0,109710.0,7e-08]
[1748333125502,0.1823205,109670.0,109660.0,0.70228937]
[1748333125679,0.2734761,109680.0,109670.0,0.1823205]
[1748333125993,0.1823205,109670.0,109660.0,0.7710564]
[1748333126291,0.2125205,109670.0,109660.0,0.6798724]
[1748333126592,0.30377063,109670.0,109660.0,0.1823372]
[1748333126794,0.33567063,109670.0,109660.0,0.5461372]
[1748333127198,0.33567063,109670.0,109660.0,0.67441966]
[1748333127385,1.3693215,109670.0,109660.0,0.003]
[1748333127690,0.1823372,109660.0,109650.0,5e-08]
[1748333127998,1.14371966,109660.0,109650.0,5e-08]